fUST/lending_fUST_20260107
["ID","MTS","AMOUNT","RATE_DAILY","PERIOD"]
[400564293,1767721846836,-1000.0,0.00031198,14]
[400564294,1767721846846,-1000.0,0.00031213,30]
[400564295,1767721846855,-1000.0,0.00031213,30]
[400564296,1767721846865,-1000.0,0.00031213,30]
[400564303,1767721846984,-715.0,0.00031213,30]
[400564305,1767721847001,-850.0,0.00031233,5]
[400564306,1767721847010,-850.0,0.00031233,5]
[400564308,1767721847020,-151.0,0.00031265,14]
[400564309,1767721847030,-2436.38343228,0.00031333,2]
[400564310,1767721847039,-669.82259808,0.00031463,2]
[400564311,1767721847049,-1000.0,0.00031464,14]
[400564312,1767721847059,-10000.0,0.00031505,8]
[400564313,1767721847068,-896.69,0.00031506,31]
[400564314,1767721847078,-1825.86,0.00031506,8]
[400564315,1767721847088,-2436.38343228,0.00031548,2]
[400564316,1767721847097,-160.0,0.00031589,47]
[400564317,1767721847107,-1000.0,0.00031641,14]
[400564318,1767721847117,-151.0,0.00031641,14]
[400564319,1767721847126,-10000.0,0.00031643,30]
[400564320,1767721847136,-166.0,0.00031644,14]
[400564321,1767721847148,-3283.93,0.000317,7]
[400564322,1767721847157,-777.0,0.000317,2]
[400564323,1767721847167,-1000.0,0.00031729,14]
[400564324,1767721847177,-950.0,0.00031781,5]
[400564325,1767721847187,-424.40376074,0.00031781,5]
[400564326,1767721847197,-223.16224092,0.000319,120]
[400564327,1767721847206,-194.50754029,0.000319,120]
[400564328,1767721847216,-172.33135592,0.000319,120]
[400564329,1767721847225,-287.40793029,0.000319,120]
[400564330,1767721847234,-203.06425058,0.000319,120]
[400564331,1767721847244,-180.06087287,0.000319,120]
[400564332,1767721847253,-1488.54574986,0.000319,120]
[400564333,1767721847263,-185.65429275,0.000319,120]
[400564334,1767721847272,-1501.31876826,0.00031907,15]
[400564335,1767721847282,-2436.38343228,0.00031983,2]
[400564336,1767721847291,-1000.0,0.00031995,14]
[400564337,1767721847301,-1041.66666667,0.00032,30]
[400564338,1767721847310,-2000.0,0.00032,7]
[400564339,1767721847320,-151.0,0.00032017,14]
[400564340,1767721847329,-10000.0,0.00032053,30]
[400564341,1767721847339,-896.69,0.00032054,32]
[400564342,1767721847349,-2760.87,0.000321,14]
[400564343,1767721847358,-1697.1302366,0.00032212,33]
[400564344,1767721847368,-2436.38343228,0.00032231,2]
[400564345,1767721847378,-1000.0,0.0003226,14]
[400564346,1767721847388,-11034.61992398,0.00032261,2]
[400564347,1767721847402,-1050.0,0.00032329,5]
[400564348,1767721847413,-2436.38343228,0.00032388,2]
[400564349,1767721847423,-151.0,0.00032393,14]
[400564350,1767721847433,-228.78,0.000324,7]
[400564351,1767721847444,-268.84,0.000324,7]
[400564352,1767721847454,-24466.81,0.000324,2]
[400564353,1767721847465,-2000.0,0.000324,120]
[400564354,1767721847475,-183.3,0.000324,5]
[400564355,1767721847485,-1000.0,0.00032526,14]
[400564356,1767721847497,-522.4,0.000326,2]
[400564357,1767721847507,-10000.0,0.00032601,30]
[400564358,1767721847517,-896.69,0.00032602,33]
[400564359,1767721847526,-1365.0,0.00032656,2]
[400564360,1767721847536,-2145.0,0.00032656,2]
[400564361,1767721847546,-628.0,0.00032656,2]
[400564362,1767721847556,-2436.38343228,0.00032761,2]
[400564363,1767721847566,-151.0,0.00032769,14]
[400564364,1767721847575,-1000.0,0.00032791,14]
[400564365,1767721847585,-205.8638811,0.00032849,2]
[400564366,1767721847594,-1758.81,0.00032876,120]
[400564367,1767721847603,-1825.86,0.00032876,120]
[400564368,1767721847614,-151.0,0.00032877,31]
[400564369,1767721847623,-10724.37,0.00032877,10]
[400564370,1767721847633,-8821.22,0.00032877,10]
[400564371,1767721847645,-10985.39,0.00032877,10]
[400564372,1767721847655,-500.0,0.00032877,5]
[400564373,1767721847664,-1150.0,0.00032877,5]
[400564374,1767721847674,-500.0,0.00032877,7]
[400564375,1767721847683,-500.0,0.00032877,7]
[400564376,1767721847693,-500.0,0.00032877,7]
[400564377,1767721847703,-500.0,0.00032877,7]
[400564378,1767721847713,-500.0,0.00032877,7]
[400564379,1767721847723,-500.0,0.00032877,7]
[400564380,1767721847732,-541.79744446,0.00032877,7]
[400564381,1767721847742,-500.0,0.00032877,7]
[400564382,1767721847752,-500.0,0.00032877,7]
[400564383,1767721847764,-500.0,0.00032877,7]
[400564384,1767721847773,-500.0,0.00032877,7]
[400564385,1767721847782,-2895.16188197,0.00032898,2]
[400564386,1767721847791,-194.50754029,0.000329,120]
[400564387,1767721847800,-287.40793029,0.000329,120]
[400564388,1767721847811,-203.06425058,0.000329,120]
[400564389,1767721847820,-1488.54574986,0.000329,120]
[400564390,1767721847829,-185.65429275,0.000329,120]
[400564391,1767721847840,-1758.81,0.00032904,120]
[400564392,1767721847852,-1758.81,0.00032931,120]
[400564393,1767721847865,-1758.81,0.00032958,120]
[400564394,1767721847875,-1758.81,0.00032986,120]
[400564395,1767721847884,-1041.66666667,0.00033,120]
[400564396,1767721847897,-1041.66666667,0.00033,10]
[400564397,1767721847906,-2000.0,0.00033,7]
[400564398,1767721847916,-1758.81,0.00033013,120]
[400564399,1767721847927,-1758.81,0.00033041,120]
[400564400,1767721847937,-184.3704767,0.00033041,30]
[400564401,1767721847947,-153.0,0.00033041,30]
[400564402,1767721847957,-184.3704767,0.00033041,30]
[400564403,1767721847966,-184.3704767,0.00033041,30]
[400564404,1767721847976,-153.0,0.00033041,30]
[400564405,1767721847986,-184.3704767,0.00033041,30]
[400564406,1767721847996,-184.3704767,0.00033041,30]
[400564407,1767721848006,-153.0,0.00033041,30]
[400564408,1767721848015,-184.3704767,0.00033041,30]
[400564409,1767721848025,-184.3704767,0.00033041,30]
[400564410,1767721848035,-153.0,0.00033041,30]
[400564411,1767721848045,-1000.0,0.00033057,14]
[400564412,1767721848055,-1758.81,0.00033068,120]
[400564413,1767721848066,-1758.81,0.00033095,120]
[400564414,1767721848076,-1758.81,0.00033123,120]
[400564415,1767721848086,-1000.0,0.00033145,14]
[400564416,1767721848096,-151.0,0.00033145,14]
[400564417,1767721848105,-10000.0,0.00033149,30]
[400564418,1767721848115,-1758.81,0.0003315,120]
[400564419,1767721848125,-896.69,0.0003315,34]
[400564420,1767721848134,-1758.81,0.00033178,120]
[400564421,1767721848145,-10000.0,0.00033199,30]
[400564422,1767721848155,-1758.81,0.00033205,120]
[400564423,1767721848165,-1758.81,0.00033232,120]
[400564424,1767721848176,-1758.81,0.0003326,120]
[400564425,1767721848186,-1758.81,0.00033287,120]
[400564426,1767721848195,-1758.81,0.00033315,120]
[400564427,1767721848204,-1000.0,0.00033322,14]
[400564428,1767721848214,-1758.81,0.00033342,120]
[400564429,1767721848224,-1758.81,0.00033369,120]
[400564430,1767721848233,-1758.81,0.00033397,120]
[400564431,1767721848242,-1758.81,0.00033424,120]
[400564432,1767721848252,-274.48957796,0.00033425,5]
[400564433,1767721848262,-1250.0,0.00033425,5]
[400564434,1767721848272,-1758.81,0.00033452,120]
[400564435,1767721848281,-712.88262224,0.00033463,120]
[400564436,1767721848291,-1758.81,0.00033479,120]
[400564437,1767721848300,-1758.91256973,0.00033506,120]
[400564438,1767721848310,-151.0,0.00033522,14]
[400564439,1767721848319,-10000.0,0.00033562,28]
[400564440,1767721848329,-10000.0,0.00033562,12]
[400564441,1767721848338,-1000.0,0.00033588,14]
[400564442,1767721848348,-10000.0,0.00033649,10]
[400564443,1767721848357,-1854.39385338,0.00033695,35]
[400564444,1767721848367,-10000.0,0.00033697,30]
[400564445,1767721848377,-896.69,0.00033698,35]
[400564446,1767721848387,-210.0,0.00033699,5]
[400564447,1767721848399,-15905.49,0.000337,10]
[400564448,1767721848409,-174.0,0.00033781,63]
[400564449,1767721848419,-10000.0,0.00033799,20]
[400564450,1767721848429,-3283.93,0.000338,7]
[400564451,1767721848438,-2760.87,0.000338,30]
[400564452,1767721848447,-418.5616,0.000338,30]
[400564453,1767721848457,-10115.60945091,0.00033829,2]
[400564454,1767721848466,-10000.0,0.00033835,30]
[400564455,1767721848476,-1000.0,0.00033853,14]
[400564456,1767721848486,-151.0,0.00033863,31]
[400564457,1767721848496,-151.0,0.00033863,31]
[400564458,1767721848505,-151.0,0.00033863,31]
[400564459,1767721848514,-151.0,0.00033863,31]
[400564460,1767721848524,-151.0,0.00033863,31]
[400564461,1767721848533,-627.205601,0.00033863,31]
[400564462,1767721848542,-627.205601,0.00033863,31]
[400564463,1767721848552,-153.0,0.00033863,30]
[400564464,1767721848561,-184.3704767,0.00033863,30]
[400564465,1767721848570,-153.0,0.00033863,30]
[400564466,1767721848580,-153.0,0.00033863,30]
[400564467,1767721848589,-153.0,0.00033863,30]
[400564468,1767721848598,-153.0,0.00033863,30]
[400564469,1767721848608,-153.0,0.00033863,30]
[400564470,1767721848617,-153.0,0.00033863,30]
[400564471,1767721848626,-151.0,0.00033898,14]
[400564472,1767721848635,-194.50754029,0.000339,120]
[400564473,1767721848645,-287.40793029,0.000339,120]
[400564474,1767721848654,-203.06425058,0.000339,120]
[400564475,1767721848663,-24466.81,0.000339,14]
[400564476,1767721848672,-1488.54574986,0.000339,120]
[400564477,1767721848683,-2724.453066,0.000339,19]
[400564478,1767721848692,-800.0,0.00033901,2]
[400564479,1767721848701,-11034.61992398,0.00033956,2]
[400564480,1767721848710,-800.0,0.00033964,2]
[400564481,1767721848721,-1350.0,0.00033973,5]
[400564482,1767721848730,-228.78,0.00034,7]
[400564483,1767721848739,-268.84,0.00034,7]
[400564484,1767721848748,-1041.66666667,0.00034,120]
[400564485,1767721848757,-1041.66666667,0.00034,30]
[400564486,1767721848765,-2000.0,0.00034,7]
[400564487,1767721848775,-800.0,0.00034046,2]
[400564488,1767721848783,-1000.0,0.00034119,14]
[400564489,1767721848792,-800.0,0.00034135,2]
[400564490,1767721848802,-10000.0,0.00034164,6]
[400564491,1767721848811,-183.3,0.00034169,6]
[400564492,1767721848820,-10000.0,0.00034199,14]
[400564493,1767721848829,-800.0,0.00034201,2]
[400564494,1767721848842,-896.69,0.00034246,36]
[400564495,1767721848851,-1825.86,0.00034246,120]
[400564496,1767721848860,-800.0,0.00034257,2]
[400564497,1767721848869,-10000.0,0.00034257,30]
[400564498,1767721848880,-800.0,0.00034266,2]
[400564499,1767721848889,-151.0,0.00034274,14]
[400564500,1767721848900,-800.0,0.00034312,2]
[400564501,1767721848911,-1000.0,0.00034334,30]
[400564502,1767721848920,-1000.0,0.00034334,30]
[400564503,1767721848930,-1000.0,0.00034334,30]
[400564504,1767721848939,-10000.0,0.00034338,30]
[400564505,1767721848977,-1000.0,0.00034384,14]
[400564506,1767721848986,-10000.0,0.00034399,19]
[400564507,1767721848995,-286.600994,0.00034399,31]
[400564508,1767721849004,-5000.0,0.00034399,31]
[400564509,1767721849013,-5000.0,0.00034399,31]
[400564510,1767721849023,-5000.0,0.00034399,31]
[400564511,1767721849032,-5000.0,0.00034399,31]
[400564512,1767721849041,-176.786529,0.00034399,31]
[400564513,1767721849050,-176.786529,0.00034399,31]
[400564514,1767721849059,-176.786529,0.00034399,31]
[400564515,1767721849067,-176.786529,0.00034399,31]
[400564516,1767721849077,-162.040453,0.00034399,31]
[400564517,1767721849086,-151.0,0.00034399,31]
[400564518,1767721849095,-151.0,0.00034399,31]
[400564519,1767721849104,-151.0,0.00034399,31]
[400564520,1767721849114,-1500.0,0.000344,19]
[400564521,1767721849123,-800.0,0.00034433,2]
[400564522,1767721849132,-800.0,0.00034436,2]
[400564523,1767721849143,-800.0,0.00034445,2]
[400564524,1767721849152,-600.0,0.000345,2]
[400564525,1767721849162,-800.0,0.00034512,2]
[400564526,1767721849171,-10000.0,0.0003452,5]
[400564527,1767721849180,-10000.0,0.0003452,30]
[400564528,1767721849190,-270.0,0.00034521,5]
[400564529,1767721849199,-278.71322358,0.00034521,5]
[400564530,1767721849208,-614.19109545,0.00034538,2]
[400564531,1767721849218,-800.0,0.0003454,2]
[400564532,1767721849228,-10000.0,0.00034571,2]
[400564533,1767721849238,-10000.0,0.00034572,30]
[400564534,1767721849247,-800.0,0.00034584,2]
[400564535,1767721849256,-250.0,0.000346,10]
[400564536,1767721849265,-184.31394558,0.000346,120]
[400564537,1767721849275,-10000.0,0.00034607,30]
[400564538,1767721849284,-800.0,0.0003462,2]
[400564539,1767721849294,-836.7626739,0.00034647,2]
[400564540,1767721849304,-45171.4948656,0.00034647,2]
[400564541,1767721849315,-3601.6181013,0.00034647,2]
[400564542,1767721849324,-151.0,0.00034649,7]
[400564543,1767721849334,-151.0,0.00034649,7]
[400564544,1767721849345,-260.81071806,0.00034649,7]
[400564545,1767721849354,-151.0,0.00034649,31]
[400564546,1767721849363,-151.0,0.00034649,31]
[400564547,1767721849373,-151.0,0.00034649,31]
[400564548,1767721849382,-178.486087,0.00034649,31]
[400564549,1767721849392,-178.486087,0.00034649,31]
[400564550,1767721849401,-178.486087,0.00034649,31]
[400564551,1767721849410,-178.486087,0.00034649,31]
[400564552,1767721849419,-155.50541,0.00034649,31]
[400564553,1767721849429,-151.0,0.00034649,28]
[400564554,1767721849438,-151.0,0.00034649,28]
[400564555,1767721849447,-258.528484,0.00034649,28]
[400564556,1767721849456,-151.0,0.00034649,31]
[400564557,1767721849465,-10000.0,0.00034649,7]
[400564558,1767721849475,-10000.0,0.00034649,4]
[400564559,1767721849485,-151.0,0.00034649,31]
[400564560,1767721849494,-618.008304,0.00034649,31]
[400564561,1767721849504,-618.008304,0.00034649,31]
[400564562,1767721849513,-618.008304,0.00034649,31]
[400564563,1767721849522,-618.008304,0.00034649,31]
[400564564,1767721849532,-500.0,0.00034649,7]
[400564565,1767721849542,-151.0,0.00034649,7]
[400564566,1767721849551,-187.78006525,0.00034649,7]
[400564567,1767721849562,-255.24985543,0.00034649,7]
[400564568,1767721849573,-2487.15318209,0.00034649,7]
[400564569,1767721849583,-500.0,0.00034649,7]
[400564570,1767721849593,-161.9011013,0.00034649,7]
[400564571,1767721849603,-514.84070869,0.00034649,7]
[400564572,1767721849614,-2579.17784983,0.00034649,7]
[400564573,1767721849623,-500.0,0.00034649,7]
[400564574,1767721849632,-533.88981491,0.00034649,7]
[400564575,1767721849642,-2674.60743027,0.00034649,7]
[400564576,1767721849651,-553.64373807,0.00034649,7]
[400564577,1767721849660,-2773.56790519,0.00034649,7]
[400564578,1767721849670,-500.0,0.00034649,7]
[400564579,1767721849680,-574.12855637,0.00034649,7]
[400564580,1767721849689,-2876.18991768,0.00034649,7]
[400564581,1767721849698,-500.0,0.00034649,7]
[400564582,1767721849707,-595.37131296,0.00034649,7]
[400564583,1767721849716,-250.0,0.00034649,7]
[400564584,1767721849725,-500.0,0.00034649,7]
[400564585,1767721849734,-500.0,0.00034649,7]
[400564586,1767721849743,-2982.60894464,0.00034649,7]
[400564587,1767721849753,-250.0,0.00034649,7]
[400564588,1767721849763,-617.40005154,0.00034649,7]
[400564589,1767721849772,-500.0,0.00034649,7]
[400564590,1767721849781,-500.0,0.00034649,7]
[400564591,1767721849792,-3092.96547559,0.00034649,7]
[400564592,1767721849801,-250.0,0.00034649,7]
[400564593,1767721849811,-640.24385345,0.00034649,7]
[400564594,1767721849821,-429.89419342,0.00034649,7]
[400564595,1767721849831,-3207.40519818,0.00034649,7]
[400564596,1767721849841,-250.0,0.00034649,7]
[400564597,1767721849850,-663.93287602,0.00034649,7]
[400564598,1767721849864,-500.0,0.00034649,7]
[400564599,1767721849873,-3326.07919052,0.00034649,7]
[400564600,1767721849883,-688.49839244,0.00034649,7]
[400564601,1767721849894,-500.0,0.00034649,7]
[400564602,1767721849903,-3449.14412057,0.00034649,7]
[400564603,1767721849912,-713.97283296,0.00034649,7]
[400564604,1767721849922,-312.0,0.00034649,7]
[400564605,1767721849933,-3576.76245303,0.00034649,7]
[400564606,1767721849943,-3709.10266379,0.00034649,7]
[400564607,1767721849952,-740.38982778,0.00034649,7]
[400564608,1767721849962,-3846.33946235,0.00034649,7]
[400564609,1767721849971,-767.7842514,0.00034649,7]
[400564610,1767721849981,-612.26145112,0.00034649,7]
[400564611,1767721849991,-160.0,0.00034649,7]
[400564612,1767721850001,-265.97969829,0.00034649,7]
[400564613,1767721850010,-160.0,0.00034649,7]
[400564614,1767721850020,-152.35382253,0.00034649,7]
[400564615,1767721850030,-151.0,0.00034649,7]
[400564616,1767721850039,-204.04740029,0.00034649,7]
[400564617,1767721850050,-3988.65402246,0.00034649,7]
[400564618,1767721850059,-250.0,0.00034649,7]
[400564619,1767721850068,-250.0,0.00034649,7]
[400564620,1767721850079,-250.0,0.00034649,7]
[400564621,1767721850090,-250.0,0.00034649,7]
[400564622,1767721850100,-250.0,0.00034649,7]
[400564623,1767721850110,-250.0,0.00034649,7]
[400564624,1767721850119,-250.0,0.00034649,7]
[400564625,1767721850129,-329.95937148,0.00034649,7]
[400564626,1767721850139,-500.0,0.0003465,14]
[400564627,1767721850150,-500.0,0.0003465,14]
[400564628,1767721850159,-500.0,0.0003465,14]
[400564629,1767721850169,-500.0,0.0003465,14]
[400564630,1767721850178,-500.0,0.0003465,14]
[400564631,1767721850188,-500.0,0.0003465,14]
[400564632,1767721850197,-506.55124883,0.0003465,14]
[400564633,1767721850208,-166.0,0.0003465,7]
[400564634,1767721850217,-357.37586378,0.0003465,7]
[400564635,1767721850227,-166.0,0.0003465,7]
[400564636,1767721850237,-166.0,0.0003465,7]
[400564637,1767721850247,-163.0,0.0003465,7]
[400564638,1767721850258,-163.0,0.0003465,7]
[400564639,1767721850268,-152.0,0.0003465,7]
[400564640,1767721850277,-185.22374852,0.0003465,7]
[400564641,1767721850287,-152.0,0.0003465,7]
[400564642,1767721850297,-152.0,0.0003465,7]
[400564643,1767721850306,-152.0,0.0003465,7]
[400564644,1767721850316,-152.0,0.0003465,7]
[400564645,1767721850326,-152.0,0.0003465,7]
[400564646,1767721850335,-152.0,0.0003465,7]
[400564647,1767721850345,-152.0,0.0003465,7]
[400564648,1767721850355,-153.76138875,0.0003465,7]
[400564649,1767721850364,-152.0,0.0003465,7]
[400564650,1767721850375,-152.0,0.0003465,7]
[400564651,1767721850384,-152.0,0.0003465,7]
[400564652,1767721850395,-284.0,0.0003465,7]
[400564653,1767721850405,-890.17764561,0.0003465,4]
[400564654,1767721850414,-574.71139925,0.0003465,14]
[400564655,1767721850424,-278.91034954,0.0003465,14]
[400564656,1767721850434,-2787591.85576219,0.0003465,4]
[400564657,1767721850443,-151.0,0.0003465,14]
[400564658,1767721850453,-151.0,0.0003465,31]
[400564659,1767721850463,-151.0,0.0003465,31]
[400564660,1767721850473,-151.0,0.0003465,31]
[400564661,1767721850483,-151.0,0.0003465,31]
[400564662,1767721850494,-170.332431,0.0003465,31]
[400564663,1767721850504,-627.205601,0.0003465,31]
[400564664,1767721850515,-627.205601,0.0003465,31]
[400564665,1767721850525,-1412.3,0.00034651,60]
[400564666,1767721850536,-159.49,0.00034655,60]
[400564667,1767721850546,-217.644,0.00034673,60]
[400564668,1767721850557,-1412.3,0.00034673,60]
[400564669,1767721850567,-250.0,0.000347,10]
[400564670,1767721850576,-217.63,0.00034703,60]
[400564671,1767721850585,-173.03,0.00034703,60]
[400564672,1767721850596,-1509.32,0.00034724,60]
[400564673,1767721850606,-159.49,0.00034755,60]
[400564674,1767721850615,-655.31642,0.00034773,31]
[400564675,1767721850625,-655.31642,0.00034773,31]
[400564676,1767721850635,-655.31642,0.00034773,31]
[400564677,1767721850645,-655.31642,0.00034773,31]
[400564678,1767721850654,-151.0,0.00034773,31]
[400564679,1767721850663,-151.0,0.00034773,31]
[400564680,1767721850673,-151.0,0.00034773,31]
[400564681,1767721850684,-151.0,0.00034773,31]
[400564682,1767721850694,-151.0,0.00034773,31]
[400564683,1767721850703,-151.0,0.00034773,31]
[400564684,1767721850713,-151.0,0.00034773,31]
[400564685,1767721850722,-151.0,0.00034773,31]
[400564686,1767721850732,-151.0,0.00034773,31]
[400564687,1767721850741,-501.631256,0.00034773,31]
[400564688,1767721850751,-501.631256,0.00034773,31]
[400564689,1767721850760,-501.631256,0.00034773,31]
[400564690,1767721850769,-501.631256,0.00034773,31]
[400564691,1767721850779,-1412.31267611,0.00034773,60]
[400564692,1767721850789,-896.69,0.00034794,37]
[400564693,1767721850799,-250.0,0.000348,10]
[400564694,1767721850808,-173.03,0.00034803,60]
[400564695,1767721850817,-1509.32,0.00034824,60]
[400564696,1767721850828,-159.49,0.00034855,60]
[400564697,1767721850842,-600.0,0.0003486,2]
[400564698,1767721850851,-3512.86180404,0.0003486,2]
[400564699,1767721850861,-287.718466,0.0003486,31]
[400564700,1767721850870,-258.099142,0.0003486,31]
[400564701,1767721850882,-258.099142,0.0003486,31]
[400564702,1767721850892,-258.099142,0.0003486,31]
[400564703,1767721850902,-258.099142,0.0003486,31]
[400564704,1767721850911,-246.520699,0.0003486,31]
[400564705,1767721850922,-246.520699,0.0003486,31]
[400564706,1767721850932,-246.520699,0.0003486,31]
[400564707,1767721850941,-246.520699,0.0003486,31]
[400564708,1767721850951,-287.40793029,0.000349,120]
[400564709,1767721850961,-203.06425058,0.000349,120]
[400564710,1767721850970,-300.0,0.000349,3]
[400564711,1767721850980,-1488.54574986,0.000349,120]
[400564712,1767721850989,-250.0,0.000349,10]
[400564713,1767721850999,-1500.0,0.000349,19]
[400564714,1767721851008,-173.03522826,0.00034903,60]
[400564715,1767721851018,-1509.32,0.00034924,60]
[400564716,1767721851028,-159.49,0.00034955,60]
[400564717,1767721851038,-199.999999,0.00035,120]
[400564718,1767721851048,-214.277153,0.00035,120]
[400564719,1767721851058,-10764.18994116,0.00035,2]
[400564720,1767721851067,-660.50119086,0.00035,2]
[400564721,1767721851077,-185.37771349,0.00035,120]
[400564722,1767721851086,-425.30402685,0.00035,15]
[400564723,1767721851097,-194.46103846,0.00035,120]
[400564724,1767721851107,-1000.0,0.00035,14]
[400564725,1767721851116,-250.0,0.00035,14]
[400564726,1767721851126,-250.0,0.00035,14]
[400564727,1767721851135,-250.0,0.00035,14]
[400564728,1767721851145,-250.0,0.00035,14]
[400564729,1767721851155,-206.8,0.00035,14]
[400564730,1767721851164,-151.0,0.00035,31]
[400564731,1767721851173,-151.0,0.00035,31]
[400564732,1767721851183,-151.0,0.00035,31]
[400564733,1767721851192,-151.0,0.00035,31]
[400564734,1767721851204,-151.0,0.00035,31]
[400564735,1767721851214,-170.976512,0.00035,31]
[400564736,1767721851225,-166.442051,0.00035,31]
[400564737,1767721851236,-166.442051,0.00035,31]
[400564738,1767721851246,-166.442051,0.00035,31]
[400564739,1767721851256,-151.0,0.00035,31]
[400564740,1767721851266,-166.442051,0.00035,31]
[400564741,1767721851276,-151.0,0.00035,31]
[400564742,1767721851286,-151.0,0.00035,31]
[400564743,1767721851295,-151.0,0.00035,31]
[400564744,1767721851305,-158.624878,0.00035,31]
[400564745,1767721851315,-151.0,0.00035,31]
[400564746,1767721851325,-151.0,0.00035,31]
[400564747,1767721851334,-151.0,0.00035,31]
[400564748,1767721851344,-151.0,0.00035,31]
[400564749,1767721851355,-221.765393,0.00035,31]
[400564750,1767721851364,-409.150764,0.00035,31]
[400564751,1767721851375,-409.150764,0.00035,31]
[400564752,1767721851385,-409.150764,0.00035,31]
[400564753,1767721851395,-409.150764,0.00035,31]
[400564754,1767721851404,-250.0,0.00035,10]
[400564755,1767721851413,-2000.0,0.00035,7]
[400564756,1767721851424,-1509.32,0.00035024,60]
[400564757,1767721851434,-151.0,0.00035024,31]
[400564758,1767721851444,-151.0,0.00035024,31]
[400564759,1767721851453,-257.45092,0.00035024,31]
[400564760,1767721851462,-151.0,0.00035024,31]
[400564761,1767721851471,-151.0,0.00035024,31]
[400564762,1767721851482,-151.0,0.00035024,31]
[400564763,1767721851492,-152.500089,0.00035024,31]
[400564764,1767721851503,-159.49,0.00035055,60]
[400564765,1767721851512,-366.171963,0.000351,10]
[400564766,1767721851522,-1509.32,0.00035124,60]
[400564767,1767721851532,-159.525772,0.00035155,60]
[400564768,1767721851542,-2016.65203199,0.00035177,37]
[400564769,1767721851552,-600.0,0.00035219,2]
[400564770,1767721851561,-1509.32,0.00035224,60]
[400564771,1767721851571,-3560.71058246,0.00035249,4]
[400564772,1767721851581,-1010.55048772,0.000353,21]
[400564773,1767721851590,-522.4,0.000353,2]
[400564774,1767721851599,-3283.93,0.000353,7]
[400564775,1767721851708,-2760.87,0.000353,30]
[400564776,1767721851718,-24466.81,0.000353,14]
[400564777,1767721851727,-151.0,0.000353,31]
[400564778,1767721851736,-151.0,0.000353,31]
[400564779,1767721851744,-177.092119,0.000353,31]
[400564780,1767721851753,-151.0,0.000353,31]
[400564781,1767721851761,-151.0,0.000353,31]
[400564782,1767721851770,-207.414308,0.000353,31]
[400564783,1767721851779,-153.79045,0.000353,31]
[400564784,1767721851788,-1220.0,0.00035309,30]
[400564785,1767721851797,-186.0,0.00035312,120]
[400564786,1767721851806,-1509.32,0.00035324,60]
[400564787,1767721851815,-896.69,0.00035342,38]
[400564788,1767721851824,-330.0,0.00035342,5]
[400564789,1767721851834,-500.0,0.00035346,13]
[400564790,1767721851842,-151.0,0.00035367,31]
[400564791,1767721851851,-151.0,0.00035367,31]
[400564792,1767721851863,-151.0,0.00035367,31]
[400564793,1767721851871,-151.0,0.00035367,31]
[400564794,1767721851880,-200.0,0.0003537,120]
[400564795,1767721851889,-1717.276566,0.000354,19]
[400564796,1767721851899,-1500.0,0.000354,19]
[400564797,1767721851909,-475.0,0.0003541,120]
[400564798,1767721851918,-475.0,0.0003541,120]
[400564799,1767721851927,-500.0,0.00035423,13]
[400564800,1767721851936,-1509.32,0.00035424,60]